lending/lending_fUSD_20260110
["ID","MTS","AMOUNT","RATE_DAILY","PERIOD"]
[401184799,1768027844196,-150.0,0.00016762,2]
[401184801,1768027844205,-263.75602621,0.00016764,2]
[401184803,1768027844215,-255.68743637,0.00016764,2]
[401184804,1768027844225,-189.54348929,0.00016764,2]
[401184806,1768027844235,-229.31905987,0.00016764,2]
[401184808,1768027844246,-216.87423394,0.00016764,2]
[401184810,1768027844256,-178.71892515,0.00016764,2]
[401184812,1768027844266,-150.0,0.00016773,2]
[401184814,1768027844275,-263.75602621,0.00016782,2]
[401184816,1768027844285,-255.68743637,0.00016782,2]
[401184818,1768027844294,-189.54348929,0.00016782,2]
[401184820,1768027844304,-229.31905987,0.00016782,2]
[401184822,1768027844314,-216.87423394,0.00016782,2]
[401184824,1768027844324,-178.71892515,0.00016782,2]
[401184826,1768027844333,-150.0,0.00016788,2]
[401184828,1768027844342,-766.11378665,0.0001679,2]
[401184830,1768027844354,-150.0,0.0001679,2]
[401184832,1768027844364,-263.75602621,0.000168,2]
[401184834,1768027844375,-255.68743637,0.000168,2]
[401184836,1768027844383,-189.54348929,0.000168,2]
[401184838,1768027844393,-150.0,0.000168,2]
[401184840,1768027844403,-229.31905987,0.000168,2]
[401184842,1768027844417,-216.87423394,0.000168,2]
[401184844,1768027844425,-150.0,0.000168,2]
[401184846,1768027844436,-150.0,0.000168,2]
[401184848,1768027844446,-150.0,0.000168,2]
[401184850,1768027844456,-178.71892515,0.000168,2]
[401184852,1768027844465,-150.0,0.000168,2]
[401184854,1768027844474,-270.12,0.00016811,2]
[401184856,1768027844483,-150.0,0.00016814,2]
[401184858,1768027844492,-263.75602621,0.00016818,2]
[401184860,1768027844502,-255.68743637,0.00016818,2]
[401184861,1768027844512,-189.54348929,0.00016818,2]
[401184863,1768027844522,-229.31905987,0.00016818,2]
[401184865,1768027844531,-216.87423394,0.00016818,2]
[401184867,1768027844542,-178.71892515,0.00016818,2]
[401184870,1768027844552,-150.0,0.0001682,2]
[401184871,1768027844562,-150.0,0.00016823,2]
[401184873,1768027844571,-263.75602621,0.00016836,2]
[401184875,1768027844582,-255.68743637,0.00016836,2]
[401184877,1768027844591,-189.54348929,0.00016836,2]
[401184879,1768027844601,-229.31905987,0.00016836,2]
[401184881,1768027844611,-216.87423394,0.00016836,2]
[401184883,1768027844621,-178.71892515,0.00016836,2]
[401184885,1768027844631,-161.9,0.00016836,2]
[401184887,1768027844641,-150.0,0.00016849,2]
[401184889,1768027844651,-263.75602621,0.00016855,2]
[401184891,1768027844661,-255.68743637,0.00016855,2]
[401184893,1768027844671,-189.54348929,0.00016855,2]
[401184895,1768027844680,-150.0,0.00016855,2]
[401184897,1768027844690,-229.31905987,0.00016855,2]
[401184899,1768027844700,-216.87423394,0.00016855,2]
[401184901,1768027844710,-178.71892515,0.00016855,2]
[401184903,1768027844720,-150.0,0.00016858,2]
[401184905,1768027844730,-150.0,0.00016867,2]
[401184907,1768027844740,-263.75602621,0.00016873,2]
[401184909,1768027844749,-255.68743637,0.00016873,2]
[401184911,1768027844759,-189.54348929,0.00016873,2]
[401184913,1768027844769,-229.31905987,0.00016873,2]
[401184915,1768027844779,-216.87423394,0.00016873,2]
[401184917,1768027844788,-178.71892515,0.00016873,2]
[401184919,1768027844798,-150.0,0.00016875,2]
[401184921,1768027844808,-150.0,0.00016879,2]
[401184923,1768027844818,-156.55,0.00016888,2]
[401184925,1768027844827,-304.18,0.00016888,2]
[401184927,1768027844837,-556.55,0.00016888,2]
[401184929,1768027844847,-263.75602621,0.00016891,2]
[401184931,1768027844856,-255.68743637,0.00016891,2]
[401184933,1768027844866,-189.54348929,0.00016891,2]
[401184935,1768027844876,-229.31905987,0.00016891,2]
[401184937,1768027844886,-216.87423394,0.00016891,2]
[401184939,1768027844896,-178.71892515,0.00016891,2]
[401184941,1768027844905,-150.0,0.00016892,2]
[401184943,1768027844915,-150.0,0.00016895,2]
[401184945,1768027844925,-150.0,0.00016908,2]
[401184947,1768027844935,-263.75602621,0.00016909,2]
[401184949,1768027844945,-255.68743637,0.00016909,2]
[401184951,1768027844954,-189.54348929,0.00016909,2]
[401184952,1768027844963,-229.31905987,0.00016909,2]
[401184954,1768027844973,-216.87423394,0.00016909,2]
[401184956,1768027844983,-178.71892515,0.00016909,2]
[401184958,1768027844992,-150.0,0.0001692,2]
[401184960,1768027845002,-150.0,0.00016927,2]
[401184962,1768027845011,-263.75602621,0.00016927,2]
[401184964,1768027845021,-255.68743637,0.00016927,2]
[401184965,1768027845031,-189.54348929,0.00016927,2]
[401184966,1768027845040,-229.31905987,0.00016927,2]
[401184967,1768027845050,-216.87423394,0.00016927,2]
[401184968,1768027845060,-178.71892515,0.00016927,2]
[401184969,1768027845070,-150.0,0.00016933,2]
[401184970,1768027845080,-150.0,0.00016936,2]
[401184972,1768027845090,-150.0,0.00016938,2]
[401184974,1768027845100,-263.75602621,0.00016945,2]
[401184976,1768027845110,-255.68743637,0.00016945,2]
[401184978,1768027845119,-189.54348929,0.00016945,2]
[401184980,1768027845130,-229.31905987,0.00016945,2]
[401184982,1768027845140,-216.87423394,0.00016945,2]
[401184984,1768027845149,-178.71892515,0.00016945,2]
[401184986,1768027845158,-199.7575258,0.00016951,2]
[401184988,1768027845167,-3805.2217052,0.00016958,2]
[401184990,1768027845177,-2343.32674946,0.00016958,2]
[401184992,1768027845186,-150.0,0.00016962,2]
[401184994,1768027845196,-263.75602621,0.00016964,2]
[401184996,1768027845206,-255.68743637,0.00016964,2]
[401184998,1768027845216,-189.54348929,0.00016964,2]
[401185000,1768027845225,-229.31905987,0.00016964,2]
[401185002,1768027845235,-216.87423394,0.00016964,2]
[401185005,1768027845249,-178.71892515,0.00016964,2]
[401185007,1768027845259,-150.0,0.00016967,2]
[401185009,1768027845269,-150.0,0.00016977,2]
[401185011,1768027845278,-263.75602621,0.00016982,2]
[401185013,1768027845289,-255.68743637,0.00016982,2]
[401185015,1768027845302,-189.54348929,0.00016982,2]
[401185017,1768027845311,-229.31905987,0.00016982,2]
[401185019,1768027845321,-216.87423394,0.00016982,2]
[401185021,1768027845330,-178.71892515,0.00016982,2]
[401185023,1768027845340,-500.0,0.00016986,2]
[401185025,1768027845353,-600.0,0.00016986,2]
[401185027,1768027845363,-50478.3,0.00016986,2]
[401185029,1768027845373,-150.0,0.00016987,2]
[401185031,1768027845383,-150.0,0.00016996,2]
[401185033,1768027845393,-150.0,0.00016997,2]
[401185035,1768027845404,-263.75602621,0.00017,2]
[401185037,1768027845419,-255.68743637,0.00017,2]
[401185039,1768027845429,-189.54348929,0.00017,2]
[401185041,1768027845439,-229.31905987,0.00017,2]
[401185043,1768027845449,-216.87423394,0.00017,2]
[401185045,1768027845459,-150.0,0.00017,2]
[401185047,1768027845469,-150.0,0.00017,2]
[401185049,1768027845479,-150.0,0.00017,2]
[401185051,1768027845489,-178.71892515,0.00017,2]
[401185053,1768027845499,-250.0,0.00017,2]
[401185055,1768027845508,-1036.0,0.00017,2]
[401185057,1768027845517,-1006.0,0.00017,2]
[401185059,1768027845527,-1000.0,0.00017,2]
[401185061,1768027845537,-1319.0,0.00017,2]
[401185063,1768027845546,-377.61,0.00017,2]
[401185065,1768027845555,-4092.67677505,0.00017,2]
[401185067,1768027845565,-210.20353926,0.00017,2]
[401185069,1768027845575,-263.75602621,0.00017018,2]
[401185071,1768027845585,-255.68743637,0.00017018,2]
[401185073,1768027845594,-189.54348929,0.00017018,2]
[401185075,1768027845603,-150.0,0.00017018,2]
[401185077,1768027845613,-229.31905987,0.00017018,2]
[401185078,1768027845622,-216.87423394,0.00017018,2]
[401185079,1768027845632,-178.71892515,0.00017018,2]
[401185080,1768027845641,-150.0,0.00017026,2]
[401185081,1768027845650,-659.3281205,0.00017029,2]
[401185082,1768027845660,-150.0,0.00017031,2]
[401185083,1768027845670,-263.75602621,0.00017036,2]
[401185084,1768027845679,-255.68743637,0.00017036,2]
[401185086,1768027845689,-189.54348929,0.00017036,2]
[401185088,1768027845699,-229.31905987,0.00017036,2]
[401185090,1768027845709,-216.87423394,0.00017036,2]
[401185092,1768027845718,-178.71892515,0.00017036,2]
[401185094,1768027845728,-263.75602621,0.00017055,2]
[401185096,1768027845737,-255.68743637,0.00017055,2]
[401185098,1768027845747,-189.54348929,0.00017055,2]
[401185100,1768027845756,-229.31905987,0.00017055,2]
[401185101,1768027845766,-216.87423394,0.00017055,2]
[401185103,1768027845776,-178.71892515,0.00017055,2]
[401185105,1768027845785,-150.0,0.00017056,2]
[401185106,1768027845795,-150.0,0.00017059,2]
[401185108,1768027845805,-150.0,0.00017065,2]
[401185110,1768027845814,-150.0,0.00017067,2]
[401185112,1768027845823,-263.75602621,0.00017073,2]
[401185114,1768027845834,-255.68743637,0.00017073,2]
[401185117,1768027845844,-189.54348929,0.00017073,2]
[401185118,1768027845854,-229.31905987,0.00017073,2]
[401185120,1768027845863,-216.87423394,0.00017073,2]
[401185122,1768027845873,-178.71892515,0.00017073,2]
[401185125,1768027845882,-150.0,0.00017085,2]
[401185128,1768027845891,-263.75602621,0.00017091,2]
[401185131,1768027845901,-255.68743637,0.00017091,2]
[401185133,1768027845910,-189.54348929,0.00017091,2]
[401185135,1768027845920,-229.31905987,0.00017091,2]
[401185137,1768027845930,-216.87423394,0.00017091,2]
[401185139,1768027845940,-178.71892515,0.00017091,2]
[401185140,1768027845949,-322.6107,0.00017099,2]
[401185141,1768027845960,-181.08010149,0.00017099,2]
[401185142,1768027845970,-181.08010149,0.00017099,2]
[401185143,1768027845980,-998.0,0.00017099,2]
[401185144,1768027845991,-1000.0,0.00017099,2]
[401185145,1768027846000,-250.0,0.00017099,2]
[401185146,1768027846010,-250.0,0.00017099,2]
[401185147,1768027846020,-1000.0,0.00017099,2]
[401185148,1768027846029,-265.93998841,0.00017099,2]
[401185150,1768027846039,-1000.0,0.00017099,2]
[401185152,1768027846048,-1000.0,0.00017099,2]
[401185154,1768027846057,-1000.0,0.00017099,2]
[401185155,1768027846067,-1000.0,0.00017099,2]
[401185158,1768027846077,-1000.0,0.00017099,2]
[401185160,1768027846087,-1000.0,0.00017099,2]
[401185163,1768027846368,-1000.0,0.00017099,2]
[401185164,1768027846378,-1000.0,0.00017099,2]
[401185165,1768027846388,-151.0,0.00017099,2]
[401185166,1768027846398,-151.0,0.00017099,2]
[401185167,1768027846409,-1000.0,0.00017099,2]
[401185168,1768027846419,-151.0,0.00017099,2]
[401185169,1768027846430,-157.48868544,0.00017099,2]
[401185170,1768027846439,-1000.0,0.00017099,2]
[401185171,1768027846448,-623.58710448,0.00017099,2]
[401185172,1768027846458,-1000.0,0.00017099,2]
[401185173,1768027846469,-250.0,0.00017099,2]
[401185174,1768027846479,-500.0,0.00017099,2]
[401185175,1768027846489,-1000.0,0.00017099,2]
[401185176,1768027846499,-250.0,0.00017099,2]
[401185177,1768027846508,-500.0,0.00017099,2]
[401185178,1768027846518,-1000.0,0.00017099,2]
[401185179,1768027846528,-250.0,0.00017099,2]
[401185180,1768027846537,-500.0,0.00017099,2]
[401185181,1768027846547,-250.0,0.00017099,2]
[401185182,1768027846557,-500.0,0.00017099,2]
[401185183,1768027846566,-250.0,0.00017099,2]
[401185184,1768027846575,-500.0,0.00017099,2]
[401185185,1768027846585,-250.0,0.00017099,2]
[401185186,1768027846594,-500.0,0.00017099,2]
[401185187,1768027846603,-8260.13072239,0.00017099,2]
[401185188,1768027846613,-250.0,0.00017099,2]
[401185189,1768027846622,-500.0,0.00017099,2]
[401185190,1768027846631,-500.0,0.00017099,2]
[401185191,1768027846641,-250.0,0.00017099,2]
[401185192,1768027846651,-500.0,0.00017099,2]
[401185193,1768027846661,-250.0,0.00017099,2]
[401185194,1768027846670,-500.0,0.00017099,2]
[401185195,1768027846679,-250.0,0.00017099,2]
[401185196,1768027846689,-250.0,0.00017099,2]
[401185197,1768027846699,-500.0,0.00017099,2]
[401185198,1768027846708,-500.0,0.00017099,2]
[401185199,1768027846718,-500.0,0.00017099,2]
[401185200,1768027846728,-250.0,0.00017099,2]
[401185201,1768027846737,-250.0,0.00017099,2]
[401185202,1768027846746,-262.27490419,0.00017099,2]
[401185203,1768027846756,-500.0,0.00017099,2]
[401185204,1768027846765,-250.0,0.00017099,2]
[401185205,1768027846774,-2000.0,0.00017099,2]
[401185206,1768027846784,-500.0,0.00017099,2]
[401185207,1768027846794,-250.0,0.00017099,2]
[401185208,1768027846803,-500.0,0.00017099,2]
[401185209,1768027846813,-250.0,0.00017099,2]
[401185210,1768027846823,-2000.0,0.00017099,2]
[401185211,1768027846832,-500.0,0.00017099,2]
[401185212,1768027846841,-250.0,0.00017099,2]
[401185213,1768027846851,-500.0,0.00017099,2]
[401185214,1768027846861,-250.0,0.00017099,2]
[401185215,1768027846871,-2000.0,0.00017099,2]
[401185216,1768027846881,-500.0,0.00017099,2]
[401185217,1768027846891,-273.64704408,0.00017099,2]
[401185218,1768027846901,-500.0,0.00017099,2]
[401185219,1768027846911,-250.0,0.00017099,2]
[401185220,1768027846921,-496.47127164,0.00017099,2]
[401185221,1768027846930,-500.0,0.00017099,2]
[401185222,1768027846940,-2000.0,0.00017099,2]
[401185223,1768027846951,-500.0,0.00017099,2]
[401185224,1768027846960,-2000.0,0.00017099,2]
[401185225,1768027846970,-500.0,0.00017099,2]
[401185226,1768027846980,-290.47234924,0.00017099,2]
[401185227,1768027846990,-2000.0,0.00017099,2]
[401185228,1768027847000,-500.0,0.00017099,2]
[401185229,1768027847009,-2000.0,0.00017099,2]
[401185230,1768027847019,-500.0,0.00017099,2]
[401185231,1768027847029,-250.0,0.00017099,2]
[401185232,1768027847039,-2000.0,0.00017099,2]
[401185233,1768027847050,-500.0,0.00017099,2]
[401185234,1768027847059,-250.0,0.00017099,2]
[401185235,1768027847069,-2000.0,0.00017099,2]
[401185236,1768027847079,-500.0,0.00017099,2]
[401185237,1768027847089,-262.0209475,0.00017099,2]
[401185238,1768027847099,-2000.0,0.00017099,2]
[401185239,1768027847109,-500.0,0.00017099,2]
[401185240,1768027847119,-2000.0,0.00017099,2]
[401185241,1768027847128,-500.0,0.00017099,2]
[401185242,1768027847138,-525.94323817,0.00017099,2]
[401185243,1768027847148,-250.0,0.00017099,2]
[401185244,1768027847158,-500.0,0.00017099,2]
[401185245,1768027847168,-250.0,0.00017099,2]
[401185246,1768027847178,-267.33747462,0.00017099,2]
[401185247,1768027847188,-151.0,0.00017099,2]
[401185248,1768027847198,-250.0,0.00017099,2]
[401185249,1768027847208,-250.0,0.00017099,2]
[401185250,1768027847217,-268.55828979,0.00017099,2]
[401185251,1768027847227,-150.0,0.000171,2]
[401185252,1768027847237,-150.0,0.000171,2]
[401185253,1768027847247,-150.0,0.000171,2]
[401185254,1768027847257,-150.0,0.000171,2]
[401185255,1768027847266,-1069.8949683,0.000171,2]
[401185256,1768027847276,-263.75602621,0.00017109,2]
[401185257,1768027847286,-255.68743637,0.00017109,2]
[401185258,1768027847297,-189.54348929,0.00017109,2]
[401185259,1768027847306,-229.31905987,0.00017109,2]
[401185260,1768027847317,-216.87423394,0.00017109,2]
[401185261,1768027847327,-178.71892515,0.00017109,2]
[401185262,1768027847336,-150.0,0.00017115,2]
[401185263,1768027847346,-263.75602621,0.00017127,2]
[401185264,1768027847356,-255.68743637,0.00017127,2]
[401185265,1768027847366,-189.54348929,0.00017127,2]
[401185266,1768027847377,-229.31905987,0.00017127,2]
[401185267,1768027847388,-216.87423394,0.00017127,2]
[401185268,1768027847398,-178.71892515,0.00017127,2]
[401185269,1768027847409,-150.0,0.00017133,2]
[401185270,1768027847421,-150.0,0.00017135,2]
[401185271,1768027847431,-150.0,0.00017141,2]
[401185272,1768027847441,-150.0,0.00017144,2]
[401185273,1768027847451,-263.75602621,0.00017145,2]
[401185274,1768027847460,-255.68743637,0.00017145,2]
[401185275,1768027847471,-189.54348929,0.00017145,2]
[401185276,1768027847482,-229.31905987,0.00017145,2]
[401185277,1768027847492,-216.87423394,0.00017145,2]
[401185278,1768027847502,-178.71892515,0.00017145,2]
[401185279,1768027847512,-8565.75555911,0.00017154,2]
[401185280,1768027847522,-263.75602621,0.00017164,2]
[401185281,1768027847531,-255.68743637,0.00017164,2]
[401185282,1768027847541,-189.54348929,0.00017164,2]
[401185283,1768027847551,-229.31905987,0.00017164,2]
[401185284,1768027847560,-216.87423394,0.00017164,2]
[401185285,1768027847570,-178.71892515,0.00017164,2]
[401185286,1768027847580,-150.0,0.00017169,2]
[401185287,1768027847590,-150.0,0.00017174,2]
[401185288,1768027847599,-200.0,0.00017174,2]
[401185289,1768027847609,-263.75602621,0.00017182,2]
[401185290,1768027847619,-255.68743637,0.00017182,2]
[401185291,1768027847628,-189.54348929,0.00017182,2]
[401185292,1768027847638,-150.0,0.00017182,2]
[401185293,1768027847648,-229.31905987,0.00017182,2]
[401185294,1768027847658,-216.87423394,0.00017182,2]
[401185295,1768027847667,-178.71892515,0.00017182,2]
[401185296,1768027847677,-176.9,0.00017191,2]
[401185297,1768027847687,-263.75602621,0.000172,2]
[401185298,1768027847697,-255.68743637,0.000172,2]
[401185299,1768027847707,-189.54348929,0.000172,2]
[401185300,1768027847717,-229.31905987,0.000172,2]
[401185301,1768027847726,-216.87423394,0.000172,2]
[401185302,1768027847736,-150.0,0.000172,2]
[401185303,1768027847746,-150.0,0.000172,2]
[401185304,1768027847756,-150.0,0.000172,2]
[401185305,1768027847766,-178.71892515,0.000172,2]
[401185306,1768027847776,-150.0,0.00017203,2]
[401185307,1768027847786,-150.0,0.00017204,2]
[401185308,1768027847796,-8882.6885148,0.00017209,2]
[401185309,1768027847806,-150.0,0.00017212,2]
[401185310,1768027847816,-263.75602621,0.00017218,2]
[401185311,1768027847826,-255.68743637,0.00017218,2]
[401185312,1768027847836,-189.54348929,0.00017218,2]
[401185313,1768027847846,-229.31905987,0.00017218,2]
[401185314,1768027847855,-216.87423394,0.00017218,2]
[401185315,1768027847865,-178.71892515,0.00017218,2]
[401185316,1768027847875,-150.0,0.00017223,2]
[401185317,1768027847885,-150.0,0.00017233,2]
[401185318,1768027847895,-263.75602621,0.00017236,2]
[401185319,1768027847904,-255.68743637,0.00017236,2]
[401185320,1768027847915,-189.54348929,0.00017236,2]
[401185321,1768027847924,-229.31905987,0.00017236,2]
[401185322,1768027847934,-216.87423394,0.00017236,2]
[401185323,1768027847944,-178.71892515,0.00017236,2]
[401185324,1768027847954,-150.0,0.00017238,2]
[401185325,1768027847964,-263.75602621,0.00017255,2]
[401185326,1768027847974,-255.68743637,0.00017255,2]
[401185327,1768027847984,-189.54348929,0.00017255,2]
[401185328,1768027847994,-229.31905987,0.00017255,2]
[401185329,1768027848004,-216.87423394,0.00017255,2]
[401185330,1768027848014,-178.71892515,0.00017255,2]
[401185331,1768027848024,-150.0,0.00017262,2]
[401185332,1768027848034,-150.0,0.00017264,2]
[401185333,1768027848043,-805.55508344,0.00017264,2]
[401185334,1768027848053,-176.9,0.00017265,2]
[401185335,1768027848062,-150.0,0.00017267,2]
[401185336,1768027848072,-3805.2217052,0.00017272,2]
[401185337,1768027848082,-2343.32674946,0.00017272,2]
[401185338,1768027848092,-263.75602621,0.00017273,2]
[401185339,1768027848101,-255.68743637,0.00017273,2]
[401185340,1768027848112,-189.54348929,0.00017273,2]
[401185341,1768027848122,-229.31905987,0.00017273,2]
[401185342,1768027848132,-216.87423394,0.00017273,2]
[401185343,1768027848142,-178.71892515,0.00017273,2]
[401185344,1768027848153,-150.0,0.00017273,2]
[401185345,1768027848163,-150.0,0.0001728,2]
[401185346,1768027848173,-159.16121496,0.00017286,2]
[401185347,1768027848183,-263.75602621,0.00017291,2]
[401185348,1768027848193,-255.68743637,0.00017291,2]
[401185349,1768027848203,-189.54348929,0.00017291,2]
[401185350,1768027848212,-229.31905987,0.00017291,2]
[401185351,1768027848221,-216.87423394,0.00017291,2]
[401185352,1768027848231,-178.71892515,0.00017291,2]
[401185353,1768027848241,-150.0,0.00017292,2]
[401185354,1768027848251,-150.0,0.00017305,2]
[401185355,1768027848261,-150.0,0.00017308,2]
[401185356,1768027848271,-263.75602621,0.00017309,2]
[401185357,1768027848281,-255.68743637,0.00017309,2]
[401185358,1768027848291,-189.54348929,0.00017309,2]
[401185359,1768027848301,-229.31905987,0.00017309,2]
[401185360,1768027848310,-216.87423394,0.00017309,2]
[401185361,1768027848320,-178.71892515,0.00017309,2]
[401185362,1768027848331,-150.0,0.00017321,2]
[401185363,1768027848343,-150.0,0.00017325,2]
[401185364,1768027848353,-263.75602621,0.00017327,2]
[401185365,1768027848368,-255.68743637,0.00017327,2]
[401185366,1768027848378,-189.54348929,0.00017327,2]
[401185367,1768027848389,-229.31905987,0.00017327,2]
[401185368,1768027848399,-216.87423394,0.00017327,2]
[401185369,1768027848411,-178.71892515,0.00017327,2]
[401185370,1768027848422,-150.0,0.00017333,2]
[401185371,1768027848432,-176.9,0.00017338,2]
[401185372,1768027848443,-150.0,0.00017342,2]
[401185373,1768027848453,-263.75602621,0.00017345,2]
[401185374,1768027848463,-255.68743637,0.00017345,2]
[401185375,1768027848473,-189.54348929,0.00017345,2]
[401185376,1768027848485,-150.0,0.00017345,2]
[401185377,1768027848495,-229.31905987,0.00017345,2]
[401185378,1768027848504,-216.87423394,0.00017345,2]
[401185379,1768027848515,-178.71892515,0.00017345,2]
[401185380,1768027848525,-1000.0,0.00017347,2]
[401185381,1768027848536,-150.0,0.00017351,2]
[401185382,1768027848547,-164.0,0.0001736,2]
[401185383,1768027848557,-263.75602621,0.00017364,2]
[401185384,1768027848567,-255.68743637,0.00017364,2]
[401185385,1768027848578,-189.54348929,0.00017364,2]
[401185386,1768027848588,-229.31905987,0.00017364,2]
[401185387,1768027848598,-216.87423394,0.00017364,2]
[401185388,1768027848608,-178.71892515,0.00017364,2]
[401185389,1768027848618,-500.0,0.0001737,2]
[401185390,1768027848629,-150.0,0.00017377,2]
[401185391,1768027848643,-150.0,0.0001738,2]
[401185392,1768027848656,-263.75602621,0.00017382,2]
[401185393,1768027848666,-255.68743637,0.00017382,2]
[401185394,1768027848676,-189.54348929,0.00017382,2]
[401185395,1768027848685,-229.31905987,0.00017382,2]
[401185396,1768027848695,-216.87423394,0.00017382,2]
[401185397,1768027848705,-178.71892515,0.00017382,2]
[401185398,1768027848715,-150.0,0.00017386,2]
[401185399,1768027848725,-263.75602621,0.000174,2]
[401185400,1768027848735,-255.68743637,0.000174,2]
[401185401,1768027848745,-189.54348929,0.000174,2]
[401185402,1768027848755,-150.0,0.000174,2]
[401185403,1768027848765,-229.31905987,0.000174,2]
[401185404,1768027848775,-216.87423394,0.000174,2]
[401185405,1768027848899,-150.0,0.000174,2]
[401185406,1768027848910,-150.0,0.000174,2]
[401185407,1768027848920,-150.0,0.000174,2]
[401185408,1768027848930,-178.71892515,0.000174,2]
[401185409,1768027848940,-150.0,0.000174,2]
[401185410,1768027848950,-150.0,0.0001741,2]
[401185411,1768027848960,-150.0,0.00017412,2]
[401185412,1768027848969,-176.9,0.00017412,2]
[401185413,1768027848979,-263.75602621,0.00017418,2]
[401185414,1768027848989,-255.68743637,0.00017418,2]
[401185415,1768027848998,-189.54348929,0.00017418,2]
[401185416,1768027849007,-229.31905987,0.00017418,2]
[401185417,1768027849017,-216.87423394,0.00017418,2]
[401185418,1768027849027,-178.71892515,0.00017418,2]
[401185419,1768027849037,-150.0,0.00017427,2]
[401185420,1768027849046,-263.75602621,0.00017436,2]
[401185421,1768027849056,-255.68743637,0.00017436,2]
[401185422,1768027849066,-189.54348929,0.00017436,2]
[401185423,1768027849076,-229.31905987,0.00017436,2]
[401185424,1768027849085,-216.87423394,0.00017436,2]
[401185425,1768027849095,-178.71892515,0.00017436,2]
[401185426,1768027849104,-150.0,0.00017437,2]
[401185427,1768027849114,-150.0,0.00017439,2]
[401185428,1768027849124,-150.0,0.00017446,2]
[401185429,1768027849133,-263.75602621,0.00017455,2]
[401185430,1768027849143,-255.68743637,0.00017455,2]
[401185431,1768027849153,-189.54348929,0.00017455,2]
[401185432,1768027849163,-229.31905987,0.00017455,2]
[401185433,1768027849172,-216.87423394,0.00017455,2]
[401185434,1768027849182,-178.71892515,0.00017455,2]
[401185435,1768027849192,-15000.0,0.00017463,7]
[401185436,1768027849201,-150.0,0.00017467,2]
[401185437,1768027849211,-150.0,0.00017468,2]
[401185438,1768027849221,-150.0,0.00017469,2]
[401185439,1768027849230,-263.75602621,0.00017473,2]
[401185440,1768027849240,-255.68743637,0.00017473,2]
[401185441,1768027849249,-189.54348929,0.00017473,2]
[401185442,1768027849260,-229.31905987,0.00017473,2]
[401185443,1768027849269,-216.87423394,0.00017473,2]
[401185444,1768027849279,-178.71892515,0.00017473,2]
[401185445,1768027849289,-150.0,0.00017481,2]
[401185446,1768027849299,-1000.0,0.00017482,2]
[401185447,1768027849309,-176.9,0.00017485,2]
[401185448,1768027849319,-263.75602621,0.00017491,2]
[401185449,1768027849329,-255.68743637,0.00017491,2]
[401185450,1768027849338,-189.54348929,0.00017491,2]
[401185451,1768027849347,-229.31905987,0.00017491,2]
[401185452,1768027849356,-216.87423394,0.00017491,2]
[401185453,1768027849376,-178.71892515,0.00017491,2]
[401185454,1768027849386,-1000.0,0.00017494,2]
[401185455,1768027849396,-150.0,0.00017498,2]
[401185456,1768027849406,-429.31,0.00017502,2]
[401185457,1768027849420,-263.75602621,0.00017509,2]
[401185458,1768027849431,-255.68743637,0.00017509,2]
[401185459,1768027849441,-189.54348929,0.00017509,2]
[401185460,1768027849452,-150.0,0.00017509,2]
[401185461,1768027849461,-229.31905987,0.00017509,2]
[401185462,1768027849471,-216.87423394,0.00017509,2]
[401185463,1768027849481,-178.71892515,0.00017509,2]
[401185464,1768027849491,-150.0,0.00017515,2]
[401185465,1768027849501,-263.75602621,0.00017527,2]
[401185466,1768027849511,-255.68743637,0.00017527,2]
[401185467,1768027849520,-189.54348929,0.00017527,2]
[401185468,1768027849530,-229.31905987,0.00017527,2]
[401185469,1768027849540,-216.87423394,0.00017527,2]